bitfinex-derivatives/quotes_BTCF0:USTF0_20260104
["timestamp","ask_amount","ask_price","bid_price","bid_amount"]
[1767561254360,0.10544281,91465.0,91451.0,0.010938]
[1767561254664,0.0115359,91468.0,91451.0,0.010938]
[1767561255364,0.1045359,91473.0,91454.0,0.010938]
[1767561255557,0.10544281,91470.0,91454.0,0.010938]
[1767561255958,0.10558377,91470.0,91454.0,0.010938]
[1767561256165,0.00014096,91469.0,91454.0,0.010938]
[1767561256359,0.10467686,91473.0,91454.0,0.010938]
[1767561256552,0.10544281,91470.0,91454.0,0.010938]
[1767561258964,4.264e-05,91472.0,91454.0,0.010938]
[1767561259172,0.10544281,91470.0,91454.0,0.010938]
[1767561260871,0.01679827,91470.0,91454.0,0.010938]
[1767561261073,0.10544281,91470.0,91454.0,0.010938]
[1767561261371,0.11697871,91470.0,91454.0,0.010938]
[1767561261756,0.10544281,91470.0,91454.0,0.010938]
[1767561264271,0.1045359,91473.0,91454.0,0.010938]
[1767561264971,0.0115359,91472.0,91454.0,0.010938]
[1767561265772,0.0115359,91472.0,91455.0,0.0306647]
[1767561265964,0.04549383,91473.0,91456.0,0.0306647]
[1767561266269,0.010936,91472.0,91457.0,0.0306647]
[1767561266469,0.010936,91472.0,91458.0,0.0306647]
[1767561266665,0.010936,91472.0,91459.0,0.0306647]
[1767561266873,0.010936,91472.0,91451.0,0.010938]
[1767561267970,0.00013455,91469.0,91451.0,0.010938]
[1767561269377,0.01107055,91469.0,91452.0,0.01070356]
[1767561269777,0.00013455,91468.0,91452.0,0.01070356]
[1767561270177,0.010936,91467.0,91452.0,0.01070356]
[1767561270381,0.010936,91467.0,91445.0,0.07809807]
[1767561270382,0.00012874,91462.0,91448.0,0.093]
[1767561270585,0.00012874,91467.0,91448.0,0.093]
[1767561270971,0.04549383,91473.0,91448.0,0.10377528]
[1767561271176,0.04549383,91473.0,91449.0,0.01077528]
[1767561272172,0.010936,91469.0,91449.0,0.01077528]
[1767561272978,0.00014269,91468.0,91449.0,0.01077528]
[1767561274182,0.00014269,91468.0,91454.0,0.05890513]
[1767561274588,0.00014805,91466.0,91454.0,0.05890513]
[1767561275780,0.00014805,91459.0,91444.0,0.01109059]
[1767561275983,0.00015178,91458.0,91444.0,0.01109059]
[1767561276575,0.01108878,91458.0,91444.0,0.01109059]
[1767561276787,0.00015178,91457.0,91439.0,0.01327785]
[1767561277577,0.010938,91456.0,91439.0,0.01327785]
[1767561278486,0.00015178,91457.0,91439.0,0.02317201]
[1767561278686,0.00015178,91457.0,91440.0,0.01109059]
[1767561279380,0.103937,91459.0,91441.0,0.01109059]
[1767561279578,0.10426442,91459.0,91441.0,0.01109059]
[1767561281287,0.00023416,91458.0,91441.0,0.01109059]
[1767561281687,0.00023416,91456.0,91441.0,0.01109059]
[1767561281885,0.00023416,91454.0,91441.0,0.01109059]
[1767561282085,0.010938,91455.0,91441.0,0.01109059]
[1767561285899,0.010939,91448.0,91434.0,0.01109059]
[1767561286094,0.010938,91449.0,91434.0,0.01109059]
[1767561286892,0.010939,91444.0,91434.0,0.01109059]
[1767561287096,0.093,91459.0,91430.0,0.00011479]
[1767561287097,0.01094,91437.0,91430.0,0.00011479]
[1767561287288,0.10534305,91440.0,91399.0,0.07809807]
[1767561287597,0.1252,91451.0,91409.0,0.01208214]
[1767561287598,0.010941,91425.0,91409.0,0.01208214]
[1767561287799,0.010941,91425.0,91411.0,0.00989416]
[1767561288294,0.010942,91423.0,91411.0,0.00989416]
[1767561288597,9.067e-05,91424.0,91411.0,0.00989416]
[1767561288797,0.010942,91419.0,91394.0,0.010945]
[1767561289090,0.00175557,91422.0,91396.0,0.01109059]
[1767561289291,0.00175557,91418.0,91396.0,0.01109059]
[1767561289796,0.00175557,91418.0,91397.0,0.00989416]
[1767561290099,0.093,91421.0,91393.0,0.093]
[1767561290100,0.09487837,91421.0,91399.0,0.00989416]
[1767561290284,0.010943,91412.0,91401.0,0.01109059]
[1767561290786,0.01282137,91412.0,91389.0,0.00989416]
[1767561290983,0.010943,91412.0,91391.0,0.00989416]
[1767561292900,0.010943,91412.0,91393.0,0.00989416]
[1767561293096,0.010943,91412.0,91397.0,0.00989416]
[1767561293395,0.010943,91412.0,91398.0,0.00989416]
[1767561293790,0.010943,91412.0,91398.0,0.02098475]
[1767561295199,0.010943,91412.0,91399.0,0.00989416]
[1767561295403,0.010943,91412.0,91398.0,0.00798475]
[1767561297702,0.010943,91410.0,91395.0,0.00910973]
[1767561298009,0.010943,91410.0,91396.0,0.02070079]
[1767561299100,0.010943,91410.0,91396.0,0.01159106]
[1767561299491,0.010943,91412.0,91394.0,0.00910973]
[1767561299691,0.010943,91409.0,91394.0,0.00910973]
[1767561300097,0.010943,91409.0,91394.0,0.02070079]
[1767561300503,0.00978285,91413.0,91395.0,0.02236921]
[1767561300504,0.010943,91413.0,91395.0,0.02236921]
[1767561300707,0.010943,91413.0,91396.0,0.00991336]
[1767561300888,0.010942,91416.0,91400.0,0.00991336]
[1767561301087,0.0098513,91415.0,91394.0,0.01245585]
[1767561301397,0.0098513,91415.0,91395.0,0.00991336]
[1767561301702,0.0098513,91415.0,91395.0,0.02236921]
[1767561301902,0.0098513,91415.0,91396.0,0.00991336]
[1767561302104,0.0098513,91415.0,91396.0,0.02236921]
[1767561302411,0.010943,91413.0,91397.0,0.00991336]
[1767561302600,0.010943,91413.0,91398.0,0.00991336]
[1767561303106,0.010943,91413.0,91398.0,0.00091336]
[1767561303803,0.010943,91413.0,91397.0,0.01245585]
[1767561305008,0.010943,91411.0,91397.0,0.01245585]
[1767561305308,0.010943,91411.0,91394.0,0.00991336]
[1767561305606,0.010943,91411.0,91394.0,0.02236921]
[1767561305807,0.00812657,91417.0,91394.0,0.02236921]
[1767561306401,0.00812657,91417.0,91397.0,0.02236921]
[1767561306606,0.010943,91412.0,91398.0,0.02236921]
[1767561306907,0.010943,91412.0,91400.0,0.02236921]
[1767561307107,0.010943,91415.0,91402.0,0.02236921]
[1767561307301,0.010943,91415.0,91402.0,0.01245585]
[1767561307712,0.010943,91415.0,91403.0,0.00991336]
[1767561308109,0.010943,91415.0,91402.0,0.01245585]
[1767561309908,0.010942,91419.0,91402.0,0.01245585]
[1767561310212,0.103981,91426.0,91408.0,0.02236921]
[1767561311305,0.010942,91423.0,91408.0,0.01245585]
[1767561311705,0.0098513,91422.0,91403.0,0.01245585]
[1767561311904,0.0098513,91421.0,91403.0,0.01245585]
[1767561312103,0.0098513,91420.0,91400.0,0.10295336]
[1767561312814,0.0098513,91420.0,91400.0,0.11540921]
[1767561313023,0.0098513,91420.0,91401.0,0.02236921]
[1767561313314,0.010942,91417.0,91401.0,0.02236921]
[1767561313997,0.010942,91417.0,91403.0,0.02236921]
[1767561314199,0.010942,91417.0,91403.0,0.01245585]
[1767561315906,0.010942,91417.0,91403.0,0.00745585]
[1767561317120,0.010942,91417.0,91400.0,0.09304]
[1767561317513,0.010942,91417.0,91400.0,0.10295336]
[1767561318118,0.010942,91417.0,91400.0,0.11540921]
[1767561318419,0.010942,91417.0,91401.0,0.00991336]
[1767561319313,0.010942,91417.0,91402.0,0.00991336]
[1767561320818,0.010942,91417.0,91401.0,0.01245585]
[1767561321021,0.02773802,91416.0,91401.0,0.01245585]
[1767561321318,0.0098513,91407.0,91392.0,0.09304]
[1767561321509,0.02273753,91405.0,91385.0,0.00991336]
[1767561321817,0.02273753,91403.0,91383.0,0.00991336]
[1767561322114,0.010945,91392.0,91373.0,0.00991336]
[1767561322317,0.010945,91392.0,91377.0,0.10295336]
[1767561323520,0.010945,91392.0,91378.0,0.00991336]
[1767561324217,0.010945,91392.0,91374.0,0.00991336]
[1767561324218,0.03368253,91392.0,91374.0,0.00991336]
[1767561324423,0.03368253,91392.0,91372.0,0.00991336]
[1767561324424,0.010946,91389.0,91372.0,0.00991336]
[1767561324613,0.010946,91389.0,91373.0,0.00991336]
[1767561327621,0.10551688,91390.0,91373.0,0.01245585]
[1767561327922,0.10551688,91390.0,91374.0,0.00991336]
[1767561328311,0.00011479,91391.0,91376.0,0.00991336]
[1767561329122,0.00011479,91391.0,91376.0,0.02236921]
[1767561329324,0.00011479,91391.0,91377.0,0.00991336]
[1767561331028,0.00011479,91391.0,91380.0,0.00944253]
[1767561331210,0.00011479,91391.0,91379.0,0.01135685]
[1767561334126,0.00011479,91391.0,91379.0,0.02079938]
[1767561335225,0.00011479,91391.0,91374.0,0.010947]
[1767561335426,0.10551688,91390.0,91376.0,0.00997971]
[1767561337330,0.00011479,91391.0,91376.0,0.02092671]
[1767561337531,0.10551688,91390.0,91379.0,0.00997971]
[1767561338122,0.00011479,91391.0,91379.0,0.00997971]
[1767561341835,0.10551688,91390.0,91375.0,0.010947]
[1767561342031,0.10551688,91390.0,91375.0,0.02092671]
[1767561343733,0.00011479,91391.0,91375.0,0.02092671]
[1767561343939,0.10551688,91390.0,91375.0,0.02092671]
[1767561345138,0.10551688,91390.0,91373.0,0.00997971]
[1767561346128,0.10551688,91390.0,91374.0,0.00997971]
[1767561346635,0.10551688,91390.0,91376.0,0.02388411]
[1767561346838,0.10551688,91390.0,91377.0,0.00997971]
[1767561347128,0.02372267,91389.0,91372.0,0.010948]
[1767561347329,0.02372267,91389.0,91369.0,0.10408491]
[1767561347534,0.01417741,91389.0,91370.0,0.00997971]
[1767561347838,0.10551688,91390.0,91372.0,0.00997971]
[1767561349942,0.01105979,91391.0,91373.0,0.00997971]
[1767561350144,0.10551688,91390.0,91373.0,0.00997971]
[1767561353648,0.10551688,91390.0,91373.0,0.02092671]
[1767561353846,0.10551688,91390.0,91372.0,0.0139044]
[1767561353847,0.10551688,91390.0,91375.0,0.010947]
[1767561355252,0.00011479,91391.0,91375.0,0.010947]
[1767561355442,0.00011479,91391.0,91377.0,0.010947]
[1767561358954,0.00011479,91391.0,91375.0,0.00692671]
[1767561359854,0.00011479,91391.0,91372.0,0.0139044]
[1767561360265,0.025461,91389.0,91371.0,0.09308]
[1767561360453,0.01620745,91389.0,91371.0,0.104028]
[1767561360646,0.11646288,91390.0,91372.0,0.01559495]
[1767561361246,0.11646288,91390.0,91373.0,0.010947]
[1767561361445,0.00011479,91391.0,91374.0,0.00991088]
[1767561361646,0.00011479,91391.0,91375.0,0.010947]
[1767561361849,0.10551688,91390.0,91375.0,0.02085788]
[1767561362049,0.09308,91408.0,91387.0,0.02550583]
[1767561362247,0.025461,91405.0,91384.0,0.01559495]
[1767561362446,0.10551688,91400.0,91383.0,0.00991088]
[1767561362657,0.00925355,91394.0,91383.0,0.00991088]
[1767561363757,0.010945,91393.0,91383.0,0.00991088]
[1767561364054,0.036406,91393.0,91383.0,0.00991088]
[1767561364359,0.036406,91393.0,91375.0,0.09308]
[1767561365157,0.010946,91388.0,91373.0,0.00991088]
[1767561365458,0.10551688,91390.0,91373.0,0.10299088]
[1767561365658,0.010945,91391.0,91376.0,0.02550583]
[1767561365855,0.010945,91391.0,91376.0,0.01559495]
[1767561366049,0.010945,91391.0,91373.0,0.09308]
[1767561366258,0.010945,91391.0,91374.0,0.00991088]
[1767561366949,0.010945,91391.0,91375.0,0.00991088]
[1767561367143,0.01620745,91394.0,91375.0,0.00991088]
[1767561367350,0.010945,91395.0,91377.0,0.00991088]
[1767561368960,0.025461,91398.0,91381.0,0.010946]
[1767561369153,0.01620745,91398.0,91379.0,0.00991088]
[1767561369457,0.025461,91396.0,91374.0,0.00991088]
[1767561369766,0.010945,91395.0,91376.0,0.00991088]
[1767561371867,0.010945,91395.0,91377.0,0.00991088]
[1767561378667,0.036406,91395.0,91377.0,0.00991088]
[1767561378872,0.010945,91398.0,91388.0,0.00991088]
[1767561379166,0.010943,91411.0,91391.0,0.010945]
[1767561379364,0.02700797,91408.0,91396.0,0.00991088]
[1767561379664,0.02700797,91407.0,91398.0,0.00991088]
[1767561379868,0.00218798,91409.0,91398.0,0.00991088]
[1767561380169,0.09308,91411.0,91398.0,0.00991088]
[1767561380370,0.09308,91419.0,91403.0,0.00991088]
[1767561381865,0.09308,91419.0,91402.0,0.02044983]
[1767561382862,0.09308,91419.0,91402.0,0.010944]
[1767561383067,0.01620745,91420.0,91402.0,0.010944]
[1767561383374,0.09304,91419.0,91402.0,0.010944]
[1767561384862,0.010942,91417.0,91399.0,0.02085488]
[1767561388276,0.010942,91415.0,91399.0,0.02085488]
[1767561388477,0.010942,91415.0,91396.0,0.01559495]
[1767561388478,0.010942,91415.0,91398.0,0.010944]
[1767561388879,0.025461,91411.0,91394.0,0.09304]
[1767561389071,0.025461,91410.0,91394.0,0.09304]
[1767561389379,0.025461,91410.0,91377.0,0.010947]
[1767561389380,0.025461,91403.0,91386.0,0.010946]
[1767561389577,0.025461,91403.0,91386.0,0.103986]
[1767561392379,0.01620745,91403.0,91386.0,0.103986]
[1767561392982,0.03791993,91402.0,91383.0,0.010946]
[1767561393182,0.02697593,91397.0,91381.0,0.09304]
[1767561393776,0.01718236,91397.0,91381.0,0.09304]
[1767561394382,0.01718236,91397.0,91381.0,0.10265742]
[1767561395186,0.00979357,91400.0,91381.0,0.10265742]
[1767561396988,0.00979357,91400.0,91382.0,0.00978136]
[1767561398979,0.02591904,91400.0,91382.0,0.00978136]
[1767561400483,0.010944,91399.0,91382.0,0.00978136]
[1767561404087,0.01612547,91406.0,91387.0,0.00978136]
[1767561404288,0.010943,91411.0,91396.0,0.00978136]
[1767561404482,0.010943,91411.0,91396.0,0.00378136]
[1767561404691,0.09304,91410.0,91396.0,0.00378136]
[1767561405590,0.09304,91410.0,91395.0,0.01744232]
[1767561406991,0.09304,91410.0,91393.0,0.010945]
[1767561407590,0.103983,91410.0,91392.0,0.00978136]
[1767561409688,0.010943,91408.0,91392.0,0.00978136]
[1767561411485,0.010943,91408.0,91392.0,0.02072636]
[1767561411683,0.010943,91408.0,91392.0,0.010945]
[1767561412987,0.010944,91406.0,91390.0,0.00978136]
[1767561417199,0.00916744,91403.0,91386.0,0.010946]
[1767561417390,0.02529291,91403.0,91386.0,0.010946]
[1767561417700,0.02529291,91403.0,91388.0,0.010946]
[1767561417902,0.01612547,91403.0,91388.0,0.010946]
[1767561423002,0.010944,91402.0,91386.0,0.00978136]
[1767561424502,0.010944,91402.0,91387.0,0.010946]
[1767561425302,0.01612547,91403.0,91387.0,0.010946]
[1767561426495,0.00985109,91402.0,91387.0,0.010946]
[1767561426693,0.02617422,91402.0,91387.0,0.010946]
[1767561430505,0.00985109,91397.0,91381.0,0.103986]
[1767561431303,0.01632313,91398.0,91381.0,0.103986]
[1767561432203,0.02617422,91398.0,91381.0,0.010946]
[1767561432400,0.02617422,91398.0,91382.0,0.09304]
[1767561433705,0.02617422,91398.0,91383.0,0.010946]
[1767561433905,0.01632313,91398.0,91383.0,0.010946]
[1767561434103,0.00985109,91401.0,91383.0,0.010946]
[1767561437413,0.010944,91400.0,91383.0,0.010946]
[1767561437711,0.010944,91400.0,91383.0,0.02002889]
[1767561438011,0.02726713,91403.0,91383.0,0.02002889]
[1767561438811,0.03711822,91403.0,91383.0,0.02002889]
[1767561439014,0.00985109,91402.0,91383.0,0.02002889]
[1767561447611,0.02726713,91403.0,91383.0,0.02002889]
[1767561447612,0.010944,91401.0,91383.0,0.010946]
[1767561447811,0.02617422,91400.0,91383.0,0.010946]
[1767561449715,0.02617422,91397.0,91382.0,0.09304]
[1767561450310,0.02617422,91397.0,91380.0,0.11641982]
[1767561450510,0.02617422,91397.0,91381.0,0.09304]
[1767561453118,0.03711922,91397.0,91381.0,0.09304]
[1767561454426,0.00940176,91396.0,91381.0,0.09304]
[1767561456921,0.02712535,91393.0,91381.0,0.09304]
[1767561457426,0.02712535,91393.0,91381.0,0.08604]
[1767561458019,0.010945,91396.0,91381.0,0.08604]
[1767561459322,0.02042339,91396.0,91381.0,0.08604]
[1767561460823,0.03807035,91396.0,91381.0,0.08604]
[1767561462230,0.010945,91390.0,91381.0,0.08604]
[1767561463530,0.010945,91393.0,91381.0,0.08604]
[1767561465033,0.010945,91393.0,91381.0,0.08104]
[1767561465934,0.010945,91391.0,91381.0,0.08104]
[1767561471037,0.02859196,91395.0,91381.0,0.08104]
[1767561471942,0.010945,91395.0,91381.0,0.08104]
[1767561472140,0.010945,91391.0,91381.0,0.08104]
[1767561473244,0.010945,91391.0,91381.0,0.07604]
[1767561475737,0.01764696,91394.0,91381.0,0.07604]
[1767561475942,0.010945,91391.0,91381.0,0.07604]
[1767561476342,0.010945,91394.0,91381.0,0.07604]
[1767561477739,0.00947839,91398.0,91381.0,0.07604]
[1767561477937,0.02712535,91398.0,91381.0,0.07604]
[1767561478341,0.010945,91391.0,91381.0,0.07604]
[1767561479046,0.09304,91400.0,91382.0,0.00946527]
[1767561479235,0.010945,91394.0,91381.0,0.07604]
[1767561480356,0.010945,91394.0,91381.0,0.08552815]
[1767561480846,0.09304,91400.0,91385.0,0.02626051]
[1767561481046,0.09304,91400.0,91386.0,0.00948815]
[1767561481434,0.11013279,91400.0,91383.0,0.010946]
[1767561481643,0.09304,91400.0,91384.0,0.00948815]
[1767561488249,0.02710663,91399.0,91384.0,0.00948815]
[1767561488449,0.09304,91400.0,91384.0,0.00948815]
[1767561488645,0.02710663,91399.0,91384.0,0.00948815]
[1767561488949,0.09304,91400.0,91384.0,0.00948815]
[1767561489249,0.02710662,91399.0,91384.0,0.00948815]
[1767561489449,0.09304,91400.0,91384.0,0.00948815]
[1767561489645,0.02710818,91399.0,91384.0,0.00948815]
[1767561489950,0.09304,91400.0,91384.0,0.00948815]
[1767561490153,0.02710818,91399.0,91384.0,0.00948815]
[1767561490450,0.09304,91400.0,91384.0,0.00948815]
[1767561490647,0.02711004,91399.0,91384.0,0.00948815]
[1767561490948,0.09304,91400.0,91384.0,0.00948815]
[1767561491148,0.04417138,91399.0,91383.0,0.010946]
[1767561491344,0.01709279,91399.0,91383.0,0.010946]
[1767561491953,0.02708081,91398.0,91383.0,0.010946]
[1767561492147,0.02708081,91397.0,91383.0,0.010946]
[1767561492348,0.02708081,91396.0,91383.0,0.010946]
[1767561492549,0.01709279,91399.0,91383.0,0.010946]
[1767561492752,0.02708397,91398.0,91383.0,0.010946]
[1767561492948,0.02708397,91397.0,91383.0,0.010946]
[1767561493147,0.02708397,91396.0,91383.0,0.010946]
[1767561493444,0.01709279,91399.0,91383.0,0.010946]
[1767561493657,0.02708388,91398.0,91383.0,0.010946]
[1767561493845,0.02708388,91397.0,91383.0,0.010946]
[1767561494138,0.02708388,91396.0,91383.0,0.010946]
[1767561494338,0.01709279,91399.0,91383.0,0.010946]
[1767561494554,0.02708261,91398.0,91383.0,0.010946]
[1767561494852,0.02708261,91397.0,91383.0,0.010946]
[1767561495053,0.01709279,91399.0,91383.0,0.010946]
[1767561495364,0.02708261,91398.0,91390.0,0.00948815]
[1767561495539,0.010944,91407.0,91391.0,0.00948815]
[1767561495745,0.02708145,91406.0,91391.0,0.00948815]
[1767561495945,0.02708146,91405.0,91391.0,0.00948815]
[1767561496148,0.02708146,91404.0,91391.0,0.00948815]
[1767561496345,0.02708146,91403.0,91391.0,0.00948815]
[1767561496548,0.02708146,91402.0,91391.0,0.00948815]
[1767561496754,0.010944,91407.0,91391.0,0.00948815]
[1767561496961,0.010944,91405.0,91390.0,0.10547282]
[1767561497255,0.02707769,91404.0,91390.0,0.11496097]
[1767561497457,0.02707769,91403.0,91390.0,0.11496097]
[1767561497656,0.02707769,91402.0,91390.0,0.11496097]
[1767561497856,0.010944,91405.0,91390.0,0.11496097]
[1767561498048,0.02707524,91404.0,91390.0,0.11496097]
[1767561498242,0.02707524,91403.0,91390.0,0.11496097]
[1767561498442,0.02707524,91402.0,91390.0,0.11496097]
[1767561498658,0.01709279,91406.0,91390.0,0.11496097]
[1767561498853,0.02707353,91405.0,91390.0,0.11496097]
[1767561499152,0.02707353,91404.0,91390.0,0.11496097]
[1767561499353,0.02707353,91403.0,91390.0,0.11496097]
[1767561499552,0.02707353,91402.0,91390.0,0.11496097]
[1767561499754,0.01709279,91406.0,91390.0,0.11496097]
[1767561499954,0.02707221,91405.0,91390.0,0.11496097]
[1767561500155,0.02707221,91404.0,91390.0,0.11496097]
[1767561500351,0.02707221,91403.0,91390.0,0.11496097]
[1767561500661,0.02707221,91402.0,91390.0,0.11496097]
[1767561500960,0.01709279,91406.0,91390.0,0.11496097]
[1767561501162,0.0270711,91405.0,91390.0,0.11496097]
[1767561501460,0.0270711,91404.0,91390.0,0.11496097]
[1767561501761,0.0270711,91403.0,91390.0,0.11496097]
[1767561501951,0.01709279,91406.0,91390.0,0.11496097]
[1767561502151,0.0270702,91405.0,91390.0,0.11496097]
[1767561502361,0.0270702,91404.0,91390.0,0.11496097]
[1767561502553,0.01709279,91406.0,91390.0,0.11496097]
[1767561502755,0.02706947,91405.0,91390.0,0.11496097]
[1767561502947,0.02706947,91404.0,91390.0,0.11496097]
[1767561503152,0.01709279,91406.0,91390.0,0.11496097]
[1767561503458,0.02706947,91405.0,91390.0,0.11496097]
[1767561503658,0.02706947,91404.0,91390.0,0.11496097]
[1767561503861,0.01709279,91406.0,91390.0,0.11496097]
[1767561504154,0.02706894,91405.0,91390.0,0.10547282]
[1767561504358,0.02706894,91404.0,91391.0,0.00948815]
[1767561504560,0.01709279,91406.0,91391.0,0.00948815]
[1767561504761,0.02706856,91405.0,91391.0,0.00948815]
[1767561504960,0.02706856,91404.0,91391.0,0.00948815]
[1767561505154,0.01709279,91406.0,91391.0,0.00948815]
[1767561505356,0.02706829,91405.0,91391.0,0.00948815]
[1767561505551,0.01709279,91406.0,91391.0,0.00948815]
[1767561505751,0.02706829,91405.0,91391.0,0.00948815]
[1767561505953,0.01709279,91406.0,91391.0,0.00948815]
[1767561506152,0.02706829,91405.0,91391.0,0.00948815]
[1767561506352,0.01709279,91406.0,91391.0,0.00948815]
[1767561506552,0.02706822,91405.0,91388.0,0.00948815]
[1767561506852,0.01709279,91405.0,91388.0,0.00948815]
[1767561512069,0.02703774,91404.0,91388.0,0.00948815]
[1767561512258,0.01709279,91405.0,91388.0,0.00948815]
[1767561512458,0.02703786,91404.0,91388.0,0.00948815]
[1767561512659,0.01709279,91405.0,91388.0,0.00948815]
[1767561512860,0.027038,91404.0,91388.0,0.00948815]
[1767561513066,0.01709279,91405.0,91388.0,0.00948815]
[1767561513361,0.027038,91404.0,91388.0,0.00948815]
[1767561513569,0.01709279,91405.0,91388.0,0.00948815]
[1767561513765,0.02703833,91404.0,91388.0,0.00948815]
[1767561514064,0.01709279,91405.0,91388.0,0.00948815]
[1767561514260,0.02703833,91404.0,91388.0,0.00948815]
[1767561514564,0.01709279,91405.0,91385.0,0.02631215]
[1767561514767,0.02703874,91404.0,91386.0,0.00999082]
[1767561514968,0.01709279,91405.0,91386.0,0.00999082]
[1767561515166,0.02703874,91404.0,91386.0,0.00999082]
[1767561515367,0.02703874,91403.0,91386.0,0.00999082]
[1767561515569,0.01709279,91405.0,91386.0,0.00999082]
[1767561515868,0.02703923,91404.0,91386.0,0.00999082]
[1767561516068,0.02703923,91403.0,91386.0,0.00999082]
[1767561516268,0.01709279,91405.0,91386.0,0.00999082]
[1767561516464,0.02703982,91404.0,91386.0,0.00999082]
[1767561516660,0.02703982,91403.0,91386.0,0.00999082]
[1767561516861,0.01709279,91405.0,91386.0,0.00999082]
[1767561517061,0.02703982,91404.0,91386.0,0.00999082]
[1767561517270,0.02703982,91403.0,91386.0,0.00999082]
[1767561517465,0.01709279,91405.0,91386.0,0.00999082]
[1767561517670,0.0270405,91404.0,91386.0,0.00999082]
[1767561517876,0.0270405,91403.0,91386.0,0.00999082]
[1767561518073,0.01709279,91405.0,91386.0,0.00999082]
[1767561518369,0.0270405,91404.0,91386.0,0.00999082]
[1767561518568,0.0270405,91403.0,91386.0,0.00999082]
[1767561518770,0.0270405,91402.0,91386.0,0.00999082]
[1767561518967,0.01740008,91404.0,91386.0,0.00999082]
[1767561519157,0.02704127,91403.0,91386.0,0.00999082]
[1767561519356,0.02704127,91402.0,91386.0,0.00999082]
[1767561519571,0.01740008,91404.0,91386.0,0.00999082]
[1767561519772,0.0270422,91403.0,91386.0,0.00999082]
[1767561519974,0.0270422,91402.0,91386.0,0.00999082]
[1767561520175,0.01740008,91404.0,91386.0,0.00999082]
[1767561520470,0.0270432,91403.0,91386.0,0.00999082]
[1767561520666,0.0270432,91402.0,91386.0,0.00999082]
[1767561520976,0.01740008,91404.0,91386.0,0.00999082]
[1767561521177,0.02723132,91403.0,91386.0,0.00999082]
[1767561521364,0.02723132,91402.0,91386.0,0.00999082]
[1767561521564,0.02834408,91404.0,91386.0,0.00999082]
[1767561521764,0.02723262,91403.0,91386.0,0.00999082]
[1767561521967,0.02723262,91402.0,91386.0,0.00999082]
[1767561522165,0.02834408,91404.0,91386.0,0.00999082]
[1767561522369,0.02723423,91403.0,91386.0,0.00999082]
[1767561522565,0.02723423,91402.0,91386.0,0.00999082]
[1767561522865,0.01740008,91403.0,91386.0,0.00999082]
[1767561523061,0.02723423,91402.0,91386.0,0.00999082]
[1767561523265,0.02723423,91401.0,91386.0,0.00999082]
[1767561523462,0.01740008,91403.0,91386.0,0.00999082]
[1767561523670,0.02723637,91402.0,91386.0,0.00999082]
[1767561523862,0.02723637,91401.0,91386.0,0.00999082]
[1767561524069,0.01740008,91403.0,91386.0,0.00999082]
[1767561524264,0.02723637,91402.0,91386.0,0.00999082]
[1767561524469,0.02723637,91401.0,91386.0,0.00999082]
[1767561524670,0.01740008,91403.0,91386.0,0.00999082]
[1767561524874,0.02723811,91402.0,91386.0,0.00999082]
[1767561525169,0.02723811,91401.0,91386.0,0.00999082]
[1767561525382,0.02723811,91400.0,91386.0,0.00999082]
[1767561525571,0.01740008,91403.0,91386.0,0.00999082]
[1767561525771,0.02724125,91402.0,91386.0,0.00999082]
[1767561525973,0.02724125,91401.0,91386.0,0.00999082]
[1767561526172,0.02724125,91400.0,91386.0,0.00999082]
[1767561526373,0.01740008,91403.0,91386.0,0.00999082]
[1767561526574,0.02724133,91402.0,91386.0,0.00999082]
[1767561526776,0.02724133,91401.0,91386.0,0.00999082]
[1767561527075,0.02724133,91400.0,91386.0,0.00999082]
[1767561527375,0.01740008,91403.0,91386.0,0.00999082]
[1767561527569,0.09304,91411.0,91381.0,0.07604]
[1767561527570,0.02724117,91402.0,91390.0,0.02093582]
[1767561527771,0.02644195,91407.0,91390.0,0.010945]
[1767561527978,0.04464106,91406.0,91390.0,0.010945]
[1767561528181,0.02724098,91405.0,91390.0,0.010945]
[1767561528379,0.02724098,91404.0,91390.0,0.010945]
[1767561528681,0.02724098,91403.0,91390.0,0.010945]
[1767561528877,0.09304,91411.0,91390.0,0.010945]
[1767561528878,9.8e-07,91402.0,91390.0,0.00999082]
[1767561529083,0.01740008,91411.0,91394.0,0.010945]
[1767561529682,0.01740008,91410.0,91394.0,0.010945]
[1767561529883,0.02644195,91409.0,91391.0,0.010945]
[1767561530079,0.01740008,91408.0,91391.0,0.010945]
[1767561532283,0.01740008,91406.0,91393.0,0.010945]
[1767561533390,0.02644195,91406.0,91393.0,0.010945]
[1767561534884,0.01740008,91396.0,91387.0,0.010946]
[1767561535082,0.01740008,91396.0,91387.0,0.09304]
[1767561536382,0.01740008,91396.0,91384.0,0.010946]
[1767561536586,0.01740008,91396.0,91379.0,0.0021887]
[1767561536587,0.01740008,91389.0,91379.0,0.0021887]
[1767561537086,0.09304,91401.0,91379.0,0.0021887]
[1767561537087,0.01740008,91387.0,91379.0,0.0021887]
[1767561538177,0.00904187,91384.0,91375.0,0.09304]
[1767561538381,0.01740008,91382.0,91370.0,0.010948]
[1767561540982,0.01906439,91388.0,91372.0,0.010947]
[1767561542190,0.01906439,91382.0,91372.0,0.010947]
[1767561543888,0.01906439,91390.0,91374.0,0.00948496]
[1767561544082,0.01906439,91395.0,91375.0,0.00948496]
[1767561544283,0.01906439,91395.0,91377.0,0.010947]
[1767561544487,0.01906439,91395.0,91379.0,0.010947]
[1767561545294,0.01906439,91394.0,91381.0,0.010946]
[1767561546291,0.01906439,91394.0,91383.0,0.010946]
[1767561546493,0.09304,91396.0,91383.0,0.010946]
[1767561547395,0.10206407,91396.0,91383.0,0.010946]
[1767561548703,0.10206407,91396.0,91378.0,0.00948496]
[1767561549198,0.00902407,91394.0,91379.0,0.010947]
[1767561550401,0.00902407,91394.0,91376.0,0.010947]
[1767561552494,0.02808846,91391.0,91376.0,0.010947]
[1767561552800,0.02808846,91389.0,91374.0,0.010947]
[1767561554899,0.00902407,91383.0,91373.0,0.09304]
[1767561555505,0.02808846,91382.0,91369.0,9.691e-05]
[1767561555711,0.00902407,91380.0,91369.0,9.691e-05]
[1767561556709,0.00902407,91376.0,91367.0,0.08417691]
[1767561556914,0.00902407,91375.0,91367.0,0.08417691]
[1767561557704,9.691e-05,91374.0,91367.0,0.08417691]
[1767561557909,9.691e-05,91374.0,91362.0,0.010949]
[1767561561011,9.691e-05,91374.0,91360.0,0.09308]
[1767561561201,0.00912098,91374.0,91361.0,0.010949]
[1767561565013,0.00912098,91374.0,91360.0,0.09308]
[1767561565014,0.00902407,91373.0,91360.0,0.09308]
[1767561565324,0.00902407,91371.0,91360.0,0.09308]
[1767561567516,0.01906439,91372.0,91360.0,0.09308]
[1767561568409,0.01906439,91372.0,91361.0,0.010949]